fUST/lending_fUST_20251003
["ID","MTS","AMOUNT","RATE_DAILY","PERIOD"]
[388900932,1759485043215,-342.18194845,0.00018031,2]
[388900936,1759485043253,-365.44194577,0.00018031,2]
[388900937,1759485043263,-500.0,0.00018031,2]
[388900939,1759485043272,-666.03,0.00018031,2]
[388900941,1759485043282,-589.67078485,0.00018031,2]
[388900942,1759485043291,-500.0,0.00018031,2]
[388900944,1759485043301,-1068.81,0.00018031,2]
[388900946,1759485043311,-500.0,0.00018031,2]
[388900948,1759485043321,-500.0,0.00018031,2]
[388900949,1759485043331,-500.0,0.00018031,2]
[388900951,1759485043340,-692.8,0.00018031,2]
[388900953,1759485043350,-500.0,0.00018031,2]
[388900954,1759485043359,-500.0,0.00018031,2]
[388900956,1759485043370,-243.24671797,0.00018031,2]
[388900958,1759485043380,-500.0,0.00018031,2]
[388900960,1759485043391,-500.0,0.00018031,2]
[388900962,1759485043400,-500.0,0.00018031,2]
[388900963,1759485043410,-500.0,0.00018031,2]
[388900965,1759485043420,-500.0,0.00018031,2]
[388900967,1759485043430,-500.0,0.00018031,2]
[388900969,1759485043439,-500.0,0.00018031,2]
[388900971,1759485043450,-500.0,0.00018031,2]
[388900972,1759485043459,-597.52157112,0.00018031,2]
[388900974,1759485043468,-840.2,0.00018031,2]
[388900976,1759485043478,-500.0,0.00018031,2]
[388900978,1759485043492,-522.98,0.00018031,2]
[388900980,1759485043502,-507.86,0.00018031,2]
[388900981,1759485043512,-2022.05,0.00018031,2]
[388900983,1759485043523,-558.71936458,0.00018031,2]
[388900985,1759485043533,-571.18,0.00018032,2]
[388900987,1759485043543,-500.0,0.00018032,2]
[388900988,1759485043552,-196.93059229,0.00018032,2]
[388900990,1759485043563,-624.57,0.00018032,2]
[388900992,1759485043571,-500.0,0.00018032,2]
[388900994,1759485043581,-500.0,0.00018032,2]
[388900995,1759485043591,-500.0,0.00018032,2]
[388900997,1759485043600,-500.0,0.00018032,2]
[388900999,1759485043609,-500.0,0.00018032,2]
[388901001,1759485043618,-500.0,0.00018032,2]
[388901003,1759485043628,-500.0,0.00018032,2]
[388901004,1759485043638,-500.0,0.00018032,2]
[388901006,1759485043647,-512.6,0.00018032,2]
[388901008,1759485043657,-500.0,0.00018032,2]
[388901010,1759485043666,-457.39970898,0.00018032,2]
[388901012,1759485043675,-520.0,0.00018032,3]
[388901013,1759485043685,-737.64,0.00018032,2]
[388901015,1759485043694,-500.0,0.00018032,2]
[388901017,1759485043704,-500.0,0.00018032,2]
[388901018,1759485043713,-741.35,0.00018032,2]
[388901020,1759485043722,-500.0,0.00018032,2]
[388901021,1759485043731,-500.0,0.00018032,2]
[388901023,1759485043741,-500.0,0.00018032,2]
[388901025,1759485043752,-500.0,0.00018032,2]
[388901027,1759485043762,-500.0,0.00018032,2]
[388901028,1759485043771,-500.0,0.00018032,2]
[388901030,1759485043781,-744.09,0.00018032,2]
[388901032,1759485043790,-575.91,0.00018032,2]
[388901033,1759485043799,-599.64,0.00018032,2]
[388901035,1759485043809,-1124.8,0.00018032,2]
[388901037,1759485043818,-500.0,0.00018032,2]
[388901038,1759485043827,-500.0,0.00018032,2]
[388901039,1759485043836,-500.0,0.00018032,2]
[388901040,1759485043846,-565.29,0.00018032,2]
[388901041,1759485043855,-500.0,0.00018032,2]
[388901042,1759485043865,-1727.45,0.00018032,2]
[388901043,1759485043875,-574.06,0.00018032,2]
[388901044,1759485043884,-498.83731799,0.00018032,2]
[388901204,1759485046070,-500.0,0.00018027,2]
[388901206,1759485046079,-417.56699925,0.00018027,2]
[388901208,1759485046088,-500.0,0.00018027,2]
[388901210,1759485046098,-500.0,0.00018028,2]
[388901213,1759485046110,-707.03,0.00018031,2]
[388901215,1759485046119,-219.60415099,0.00018031,2]
[388901219,1759485046141,-493.48584901,0.00018031,2]
[388901221,1759485046151,-1.16268201,0.00018032,2]
[388901222,1759485046160,-500.0,0.00018032,2]
[388901224,1759485046170,-500.0,0.00018032,2]
[388901226,1759485046179,-500.0,0.00018032,2]
[388901228,1759485046188,-726.58,0.00018032,2]
[388901230,1759485046197,-500.0,0.00018032,2]
[388901232,1759485046206,-500.0,0.00018032,2]
[388901234,1759485046215,-500.0,0.00018032,2]
[388901236,1759485046224,-409.17146898,0.00018032,2]
[388902547,1759485064703,-500.0,0.00018026,2]
[388902548,1759485064737,-300.0,0.00018026,2]
[388902549,1759485064769,-1352.72,0.00018026,2]
[388902550,1759485064800,-500.0,0.00018027,2]
[388902551,1759485064831,-1337.56,0.00018027,2]
[388902552,1759485064862,-500.0,0.00018027,2]
[388902553,1759485064892,-394.61,0.00018027,2]
[388902557,1759485066625,-230.23,0.00018027,2]
[388902558,1759485066655,-617.83,0.00018027,2]
[388902559,1759485066684,-1396.03,0.00018027,2]
[388902560,1759485066714,-1311.89,0.00018027,2]
[388902561,1759485066742,-500.0,0.00018028,2]
[388902562,1759485068813,-2407.5,0.00018027,2]
[388902563,1759485068842,-1764.32,0.00018028,2]
[388902565,1759485070662,-1656.37,0.00018028,2]
[388902566,1759485070690,-500.0,0.00018028,2]
[388902567,1759485070718,-500.0,0.00018028,2]
[388902568,1759485070747,-505.24285302,0.00018028,2]
[388902569,1759485070774,-500.0,0.00018028,2]
[388902570,1759485070804,-500.0,0.00018028,2]
[388902571,1759485070833,-500.0,0.00018028,2]
[388902572,1759485070861,-176.78429396,0.00018028,2]
[388902573,1759485072695,-517.61058645,0.00018027,2]
[388902574,1759485072724,-323.21570604,0.00018028,2]
[388902575,1759485072751,-908.21,0.00018028,2]
[388902576,1759485072780,-500.0,0.00018028,2]
[388902577,1759485072808,-1985.06741502,0.00018029,2]
[388902578,1759485084765,450.72982383,0.00018011,2]
[388902579,1759485087886,243.4095924,0.00017926,2]
[388902580,1759485092915,500.0,0.00027397,120]
[388902581,1759485106068,-500.0,0.00018026,2]
[388902582,1759485106095,-500.0,0.00018026,2]
[388902583,1759485106121,-776.64,0.00018027,2]
[388902584,1759485106148,-646.99591423,0.00018027,2]
[388902585,1759485106175,-500.0,0.00018027,2]
[388902586,1759485106202,-500.0,0.00018027,2]
[388902587,1759485106229,-500.0,0.00018027,2]
[388902588,1759485106257,-500.0,0.00018027,2]
[388902589,1759485106282,-500.0,0.00018028,2]
[388902590,1759485110095,-500.0,0.00018028,2]
[388902591,1759485110126,-500.0,0.00018028,2]
[388902592,1759485110153,-641.08,0.00018028,2]
[388902593,1759485110181,-1413.69,0.00018028,2]
[388902594,1759485110210,-1531.80258498,0.00018029,2]
[388902595,1759485110238,-318.18483004,0.00018029,2]
[388902596,1759485114059,-500.0,0.00018028,2]
[388902597,1759485114091,-1354.78,0.00018028,2]
[388902598,1759485114119,-190.49516996,0.00018029,2]
[388902599,1759485114149,-1185.21,0.00018029,2]
[388902600,1759485114180,-500.0,0.0001803,2]
[388902601,1759485114209,-533.64,0.0001803,2]
[388902602,1759485114238,-510.98,0.0001803,2]
[388902603,1759485126001,607.19839684,0.00017932,2]
[388902604,1759485141542,14330.0,0.0003301,60]
[388902605,1759485163560,-1037.64,0.00018026,2]
[388902606,1759485163587,-1200.0,0.00018026,2]
[388902607,1759485163615,-1545.04,0.00018026,2]
[388902608,1759485163642,-1127.74,0.00018027,2]
[388902609,1759485163838,-763.98,0.00018027,2]
[388902610,1759485163864,-625.15,0.00018027,2]
[388902611,1759485163890,-744.28,0.00018027,2]
[388902612,1759485163917,-500.0,0.00018027,2]
[388902613,1759485163944,-500.0,0.00018027,2]
[388902614,1759485163971,-717.9,0.00018027,2]
[388902615,1759485164000,-912.96,0.00018027,2]
[388902616,1759485165630,-471.47,0.00018027,2]
[388902617,1759485165657,-500.0,0.00018027,2]
[388902618,1759485165684,-611.49,0.00018028,2]
[388902619,1759485165710,-500.0,0.00018028,2]
[388902620,1759485165735,-500.0,0.00018028,2]
[388902621,1759485165765,-1958.84,0.00018028,2]
[388902622,1759485165791,-416.41,0.00018028,2]
[388902623,1759485169543,-2318.67,0.00018026,2]
[388902624,1759485169739,-83.59,0.00018028,2]
[388902625,1759485169764,-717.35,0.00018028,2]
[388902626,1759485169790,-741.48,0.00018028,2]
[388902627,1759485169816,-300.0,0.00018029,2]
[388902628,1759485169841,-500.0,0.00018029,2]
[388902629,1759485169868,-177.83,0.00018029,2]
[388902630,1759485169921,-322.17,0.00018029,2]
[388902631,1759485169947,-1597.47,0.0001803,2]
[388902632,1759485169974,-588.11,0.0001803,2]
[388902633,1759485173600,-2155.22,0.0001803,2]
[388902634,1759485173642,-3712.04920743,0.0001803,2]
[388902635,1759485176709,-1330.48,0.00018028,2]
[388902636,1759485176738,-1977.52079257,0.0001803,2]
[388902637,1759485176765,-1216.05841486,0.0001803,2]
[388902638,1759485176818,-951.89158514,0.0001803,2]
[388902639,1759485178571,-710.58,0.00018028,2]
[388902640,1759485178600,-687.46,0.00018029,2]
[388902641,1759485178626,-500.0,0.0001803,2]
[388902642,1759485178652,-500.0,0.0001803,2]
[388902643,1759485178679,-803.43,0.0001803,2]
[388902644,1759485178707,-827.55,0.0001803,2]
[388902645,1759485178811,-1941.97,0.0001803,2]
[388902646,1759485180735,-1080.75,0.00018027,2]
[388902647,1759485180761,-1446.63,0.0001803,2]
[388902648,1759485180787,-500.0,0.0001803,2]
[388902649,1759485180815,-1795.12,0.0001803,2]
[388902651,1759485180885,-355.01,0.0001803,2]
[388902653,1759485188693,-1239.14,0.00018028,2]
[388902654,1759485188722,-500.0,0.00018028,2]
[388902655,1759485188751,-880.81,0.00018028,2]
[388902656,1759485188779,-300.0,0.00018029,2]
[388902657,1759485188806,-346.51,0.0001803,2]
[388902658,1759485188839,-500.0,0.0001803,2]
[388902659,1759485188879,-706.76,0.0001803,2]
[388902660,1759485188906,-153.63,0.0001803,2]
[388902661,1759485189036,-746.31,0.0001803,2]
[388902662,1759485190697,-720.33,0.0001803,2]
[388902663,1759485190725,-634.18,0.0001803,2]
[388902664,1759485190753,-500.0,0.0001803,2]
[388902665,1759485190780,-1816.76,0.0001803,2]
[388902666,1759485190806,-1105.03,0.0001803,2]
[388902667,1759485190895,-447.41,0.00018027,2]
[388902669,1759485215379,3565.82,0.00018011,2]
[388902673,1759485267891,1000.0,0.00033002,60]
[388902674,1759485282505,-598.8,0.00018026,2]
[388902675,1759485282533,-1304.85,0.00018026,2]
[388902676,1759485282565,-300.0,0.00018026,2]
[388902677,1759485282594,-621.95,0.00018026,2]
[388902678,1759485282623,-284.73,0.00018027,2]
[388902679,1759485282655,-500.0,0.00018027,2]
[388902680,1759485282683,-1326.74,0.00018027,2]
[388902681,1759485282816,-125.87,0.00018027,2]
[388902682,1759485284786,1000.0,0.00033002,60]
[388902683,1759485284822,-374.13,0.00018027,2]
[388902684,1759485284850,-4020.48,0.00018027,2]
[388902685,1759485284882,-310.91,0.00018027,2]
[388902686,1759485284966,-588.97,0.00018027,2]
[388902687,1759485286409,-216.43805603,0.00018027,2]
[388902688,1759485286438,-500.0,0.00018027,2]
[388902689,1759485286468,-564.49,0.00018027,2]
[388902690,1759485286497,-2063.63,0.00018027,2]
[388902691,1759485286525,-500.0,0.00018027,2]
[388902692,1759485286552,-844.11,0.00018028,2]
[388902693,1759485286659,-622.67388794,0.00018028,2]
[388902694,1759485288467,-1329.06611206,0.00018028,2]
[388902695,1759485288496,-502.99,0.00018028,2]
[388902696,1759485288524,-619.15,0.00018028,2]
[388902697,1759485288552,-502.08993323,0.00018028,2]
[388902698,1759485288583,-500.0,0.00018028,2]
[388902699,1759485288612,-500.0,0.00018028,2]
[388902700,1759485288642,-500.0,0.00018028,2]
[388902701,1759485288669,-500.0,0.00018028,2]
[388902702,1759485288851,-93.41790942,0.00018028,2]
[388902703,1759485294485,-514.1,0.00018027,2]
[388902704,1759485294513,-409.91520096,0.00018028,2]
[388902705,1759485294542,-500.0,0.00018028,2]
[388902706,1759485294571,-500.0,0.00018028,2]
[388902707,1759485294603,-1430.35,0.00018028,2]
[388902708,1759485294632,-208.21754051,0.00018028,2]
[388902709,1759485294662,-1247.53451706,0.00018028,2]
[388902710,1759485294984,-379.77548294,0.00018028,2]
[388902711,1759485296043,1000.0,0.00033002,60]
[388902712,1759485298502,-2147.24,0.00018027,2]
[388902713,1759485298528,-500.0,0.00018028,2]
[388902714,1759485298554,-503.48532287,0.00018028,2]
[388902715,1759485298586,-530.29,0.00018028,2]
[388902716,1759485298614,-945.57,0.00018028,2]
[388902717,1759485298641,-156.67448244,0.00018028,2]
[388902718,1759485298727,-433.49038938,0.00018028,2]
[388902720,1759485304559,-500.0,0.00018027,2]
[388902721,1759485304590,-862.39,0.00018027,2]
[388902722,1759485304620,-300.0,0.00018027,2]
[388902723,1759485304649,-300.0,0.00018027,2]
[388902724,1759485304678,-300.0,0.00018027,2]
[388902725,1759485304706,-300.0,0.00018027,2]
[388902726,1759485304734,-300.0,0.00018027,2]
[388902727,1759485304764,-1200.0,0.00018027,2]
[388902728,1759485305478,-1875.23,0.00018028,2]
[388902729,1759485308654,-166.0,0.00018021,2]
[388902730,1759485308684,-500.0,0.00018027,2]
[388902731,1759485308716,-525.71,0.00018028,2]
[388902732,1759485308745,-500.0,0.00018028,2]
[388902733,1759485308776,-500.0,0.00018028,2]
[388902734,1759485308804,-500.0,0.00018028,2]
[388902735,1759485308834,-647.76,0.00018028,2]
[388902736,1759485308864,-500.0,0.00018028,2]
[388902737,1759485308893,-988.51,0.00018028,2]
[388902738,1759485309081,-344.05,0.00018028,2]
[388902739,1759485312644,-500.0,0.00018021,2]
[388902740,1759485312673,-500.0,0.00018021,2]
[388902741,1759485312702,-500.0,0.00018021,2]
[388902742,1759485312730,-500.0,0.00018021,2]
[388902743,1759485312758,-500.0,0.00018021,2]
[388902745,1759485312784,-151.0,0.00018021,2]
[388902746,1759485312813,-500.0,0.00018021,2]
[388902747,1759485312842,-251.16304071,0.00018021,2]
[388902748,1759485312874,-500.0,0.00018028,2]
[388902749,1759485312901,-500.0,0.00018028,2]
[388902750,1759485312928,-500.0,0.00018028,2]
[388902752,1759485313220,-195.68391858,0.00018028,2]
[388902753,1759485313311,1030.0,0.00033002,60]
[388902754,1759485314654,-500.0,0.00018021,2]
[388902755,1759485314684,-500.0,0.00018021,2]
[388902756,1759485314712,-500.0,0.00018021,2]
[388902757,1759485314740,-304.31608142,0.00018028,2]
[388902758,1759485314769,-500.0,0.00018028,2]
[388902759,1759485314797,-500.0,0.00018028,2]
[388902760,1759485314826,-500.0,0.00018028,2]
[388902761,1759485314853,-348.79770939,0.00018028,2]
[388902762,1759485314884,-500.0,0.00018028,2]
[388902763,1759485314913,-500.0,0.00018028,2]
[388902764,1759485314940,-193.78241838,0.00018028,2]
[388902765,1759485315120,-306.21758162,0.00018027,2]
[388902767,1759485324667,1434.18,0.00018011,2]
[388902769,1759485400087,500.0,0.00027397,120]
[388902770,1759485407274,573.41089391,0.00017927,2]
[388902771,1759485409650,50892.0,0.00033002,60]
[388902772,1759485410632,-300.0,0.0001802,2]
[388902773,1759485410663,-500.0,0.00018021,2]
[388902774,1759485410696,-345.53475802,0.00018021,2]
[388902775,1759485410725,-250.0,0.00018021,2]
[388902776,1759485410755,-250.0,0.00018021,2]
[388902777,1759485410782,-250.0,0.00018021,2]
[388902778,1759485410810,-357.71855151,0.00018021,2]
[388902779,1759485410839,-500.0,0.00018021,2]
[388902780,1759485410867,-500.0,0.00018021,2]
[388902781,1759485410897,-500.0,0.00018021,2]
[388902782,1759485410928,-524.57033992,0.00018021,2]
[388902783,1759485410953,-500.0,0.00018026,2]
[388902784,1759485411148,-540.97,0.00018026,2]
[388902785,1759485411180,-500.0,0.00018027,2]
[388902786,1759485411211,-500.0,0.00018027,2]
[388902787,1759485411244,-500.0,0.00018027,2]
[388902788,1759485411276,-515.21612688,0.00018027,2]
[388902789,1759485411305,-500.0,0.00018027,2]
[388902790,1759485411334,-500.0,0.00018027,2]
[388902791,1759485411364,-500.0,0.00018027,2]
[388902792,1759485411394,-406.26239166,0.00018027,2]
[388902793,1759485411424,-500.0,0.00018027,2]
[388902794,1759485411806,-500.0,0.00018027,2]
[388902795,1759485411825,-75.11296292,0.00018027,2]
[388902796,1759485412530,-424.88703708,0.00018027,2]
[388902797,1759485412560,-500.0,0.00018027,2]
[388902798,1759485412590,-500.0,0.00018027,2]
[388902799,1759485412620,-500.0,0.00018027,2]
[388902800,1759485412648,-500.0,0.00018027,2]
[388902801,1759485412682,-500.0,0.00018027,2]
[388902802,1759485412714,-500.0,0.00018027,2]
[388902803,1759485412745,-396.15102033,0.00018027,2]
[388902804,1759485412774,-452.92987991,0.00018027,2]
[388902805,1759485412805,-500.0,0.00018027,2]
[388902806,1759485412964,-452.07412536,0.00018027,2]
[388902807,1759485416576,-47.92587464,0.00018027,2]
[388902808,1759485416607,-183.75820371,0.00018027,2]
[388902809,1759485416637,-500.0,0.00018027,2]
[388902810,1759485416667,-500.0,0.00018027,2]
[388902811,1759485416703,-500.0,0.00018027,2]
[388902812,1759485416733,-500.0,0.00018027,2]
[388902813,1759485416763,-412.71049361,0.00018027,2]
[388902814,1759485416792,-500.0,0.00018027,2]
[388902815,1759485416820,-500.0,0.00018027,2]
[388902816,1759485416852,-500.0,0.00018027,2]
[388902817,1759485416880,-696.68,0.00018027,2]
[388902818,1759485417156,-317.86085608,0.00018027,2]
[388902819,1759485418649,-182.13914392,0.00018027,2]
[388902820,1759485418677,-535.24,0.00018027,2]
[388902821,1759485418711,-500.0,0.00018027,2]
[388902822,1759485418741,-500.0,0.00018027,2]
[388902823,1759485418769,-807.74,0.00018027,2]
[388902824,1759485418796,-2104.33,0.00018027,2]
[388902825,1759485418909,-2128.13,0.00018027,2]
[388902826,1759485418958,-5743.75,0.00018027,2]
[388902827,1759485418967,-500.0,0.00018027,2]
[388902828,1759485418977,-241.11171216,0.00018027,2]
[388902829,1759485422624,-999.39828784,0.00018027,2]
[388902830,1759485422652,-815.73,0.00018027,2]
[388902831,1759485422681,-500.0,0.00018027,2]
[388902832,1759485422713,-722.86,0.00018027,2]
[388902833,1759485422741,-500.0,0.00018027,2]
[388902834,1759485422770,-1107.32342432,0.00018027,2]
[388902835,1759485422864,-300.0,0.00018026,2]
[388902836,1759485422873,-409.38657568,0.00018027,2]
[388902837,1759485424636,-300.0,0.00018027,2]
[388902838,1759485424664,-4027.78,0.00018027,2]
[388902839,1759485424695,-500.0,0.00018027,2]
[388902840,1759485424779,-344.45,0.00018027,2]
[388902841,1759485426665,-653.42,0.00018027,2]
[388902842,1759485426694,-500.0,0.00018027,2]
[388902843,1759485426724,-320.88545564,0.00018027,2]
[388902844,1759485426755,-607.76,0.00018027,2]
[388902845,1759485426782,-718.66,0.00018027,2]
[388902846,1759485426812,-907.06,0.00018027,2]
[388902847,1759485427127,-2584.43908872,0.00018027,2]
[388902848,1759485440570,500.0,0.00033002,60]
[388902849,1759485440803,500.0,0.00033002,60]
[388902850,1759485441033,500.0,0.00033002,60]
[388902851,1759485441287,500.0,0.00033002,60]
[388902852,1759485441519,500.0,0.00033002,60]
[388902853,1759485441606,906.17,0.00033002,60]
[388902854,1759485441757,500.0,0.00033002,60]
[388902855,1759485441969,906.17,0.00033002,60]
[388902856,1759485442276,500.0,0.00033002,60]
[388902857,1759485442315,906.17,0.00033002,60]
[388902858,1759485442431,480.72227771,0.00033002,60]
[388902859,1759485442462,906.17,0.00033002,60]
[388902860,1759485442494,548.46,0.00033002,60]
[388902861,1759485442680,906.17,0.00033002,60]
[388902862,1759485442713,671.12,0.00033002,60]
[388902863,1759485442754,548.46,0.00033002,60]
[388902864,1759485442919,906.17,0.00033002,60]
[388902865,1759485442951,548.46,0.00033002,60]
[388902866,1759485442983,671.12,0.00033002,60]
[388902867,1759485443018,1036.87,0.00033002,60]
[388902868,1759485443167,906.17,0.00033002,60]
[388902869,1759485443202,548.46,0.00033002,60]
[388902870,1759485443236,671.12,0.00033002,60]
[388902871,1759485443267,1036.87,0.00033002,60]
[388902872,1759485443389,906.17,0.00033002,60]
[388902873,1759485443499,548.46,0.00033002,60]
[388902874,1759485443547,1036.87,0.00033002,60]
[388902875,1759485443580,671.12,0.00033002,60]
[388902876,1759485443612,906.17,0.00033002,60]
[388902877,1759485443659,548.46,0.00033002,60]
[388902878,1759485443706,1036.87,0.00033002,60]
[388902879,1759485443740,671.12,0.00033002,60]
[388902880,1759485443862,906.17,0.00033002,60]
[388902881,1759485443894,696.3,0.00033002,60]
[388902882,1759485443930,548.46,0.00033002,60]
[388902883,1759485443961,671.12,0.00033002,60]
[388902884,1759485443993,1036.87,0.00033002,60]
[388902885,1759485444094,696.3,0.00033002,60]
[388902886,1759485444124,906.17,0.00033002,60]
[388902887,1759485444198,671.12,0.00033002,60]
[388902888,1759485444231,1036.87,0.00033002,60]
[388902889,1759485444262,548.46,0.00033002,60]
[388902890,1759485444320,696.3,0.00033002,60]
[388902891,1759485444351,906.17,0.00033002,60]
[388902892,1759485444439,548.46,0.00033002,60]
[388902893,1759485444472,1036.87,0.00033002,60]
[388902894,1759485444558,696.3,0.00033002,60]
[388902895,1759485444592,906.17,0.00033002,60]
[388902896,1759485444622,671.12,0.00033002,60]
[388902897,1759485444697,1036.87,0.00033002,60]
[388902898,1759485444781,696.3,0.00033002,60]
[388902899,1759485444812,548.46,0.00033002,60]
[388902900,1759485444852,671.12,0.00033002,60]
[388902901,1759485444883,906.17,0.00033002,60]
[388902902,1759485445015,696.3,0.00033002,60]
[388902903,1759485445048,1036.87,0.00033002,60]
[388902904,1759485445078,548.46,0.00033002,60]
[388902905,1759485445109,906.17,0.00033002,60]
[388902906,1759485445266,696.3,0.00033002,60]
[388902907,1759485445297,548.46,0.00033002,60]
[388902908,1759485445328,1036.87,0.00033002,60]
[388902909,1759485445359,906.17,0.00033002,60]
[388902910,1759485445464,696.3,0.00033002,60]
[388902911,1759485445515,1036.87,0.00033002,60]
[388902912,1759485445545,548.46,0.00033002,60]
[388902913,1759485445575,906.17,0.00033002,60]
[388902914,1759485445685,500.0,0.00033002,60]
[388902915,1759485445732,696.3,0.00033002,60]
[388902916,1759485445778,671.12,0.00033002,60]
[388902917,1759485445806,1036.87,0.00033002,60]
[388902918,1759485445862,906.17,0.00033002,60]
[388902919,1759485445891,548.46,0.00033002,60]
[388902920,1759485445923,500.0,0.00033002,60]
[388902921,1759485445961,696.3,0.00033002,60]
[388902922,1759485446015,671.12,0.00033002,60]
[388902923,1759485446044,1036.87,0.00033002,60]
[388902924,1759485446086,906.17,0.00033002,60]
[388902925,1759485446144,548.46,0.00033002,60]
[388902926,1759485446172,500.0,0.00033002,60]
[388902927,1759485446214,696.3,0.00033002,60]
[388902928,1759485446248,671.12,0.00033002,60]
[388902929,1759485446278,1036.87,0.00033002,60]
[388902930,1759485446469,906.17,0.00033002,60]
[388902931,1759485446498,548.46,0.00033002,60]
[388902932,1759485446526,500.0,0.00033002,60]
[388902933,1759485446555,696.3,0.00033002,60]
[388902934,1759485446586,671.12,0.00033002,60]
[388902935,1759485446616,1036.87,0.00033002,60]
[388902936,1759485446644,500.0,0.00033002,60]
[388902937,1759485446674,548.46,0.00033002,60]
[388902938,1759485446704,500.0,0.00033002,60]
[388902939,1759485446736,696.3,0.00033002,60]
[388902940,1759485446772,906.17,0.00033002,60]
[388902941,1759485446809,671.12,0.00033002,60]
[388902942,1759485446839,1036.87,0.00033002,60]
[388902943,1759485446873,500.0,0.00033002,60]
[388902944,1759485446905,548.46,0.00033002,60]
[388902945,1759485446936,500.0,0.00033002,60]
[388902946,1759485446965,906.17,0.00033002,60]
[388902947,1759485447022,696.3,0.00033002,60]
[388902948,1759485447052,671.12,0.00033002,60]
[388902949,1759485447082,1036.87,0.00033002,60]
[388902950,1759485447110,548.46,0.00033002,60]
[388902951,1759485447195,906.17,0.00033002,60]
[388902952,1759485447225,500.0,0.00033002,60]
[388902953,1759485447254,696.3,0.00033002,60]
[388902954,1759485447292,671.12,0.00033002,60]
[388902955,1759485447321,500.0,0.00033002,60]
[388902956,1759485447351,1036.87,0.00033002,60]
[388902957,1759485447381,548.46,0.00033002,60]
[388902958,1759485447429,906.38603063,0.00033002,60]
[388902959,1759485447461,696.3,0.00033002,60]
[388902960,1759485447493,500.0,0.00033002,60]
[388902961,1759485447524,671.12,0.00033002,60]
[388902962,1759485447558,1036.87,0.00033002,60]
[388902963,1759485447588,500.0,0.00033002,60]
[388902964,1759485447618,548.46,0.00033002,60]
[388902965,1759485447689,696.3,0.00033002,60]
[388902966,1759485447746,671.12,0.00033002,60]
[388902967,1759485447775,1036.87,0.00033002,60]
[388902968,1759485447805,500.0,0.00033002,60]
[388902969,1759485447834,500.0,0.00033002,60]
[388902970,1759485447864,548.46,0.00033002,60]
[388902971,1759485447917,696.3,0.00033002,60]
[388902972,1759485447984,671.12,0.00033002,60]
[388902973,1759485448079,1036.87,0.00033002,60]
[388902974,1759485448113,500.0,0.00033002,60]
[388902975,1759485448144,696.3,0.00033002,60]
[388902976,1759485448235,671.12,0.00033002,60]
[388902977,1759485448315,1036.87,0.00033002,60]
[388902978,1759485448346,500.0,0.00033002,60]